[Event "*** Titled Tuesday Blitz"]
[Site "Chess.com"]
[Date "2020.03.03"]
[Round "8"]
[White "ama18"]
[Black "ckgchess"]
[Result "1-0"]
[WhiteElo "2543"]
[BlackElo "2675"]
[TimeControl "180+1"]
[EndTime "14:33:18 PST"]
[Termination "ama18 won by resignation"]

1. e4 {[%clk 0:03:00.9]} 1... e6 {[%clk 0:02:54.6]} 2. d4 {[%clk 0:03:00.3]}
2... d5 {[%clk 0:02:51.7]} 3. Nc3 {[%clk 0:03:00.8]} 3... dxe4 {[%clk
0:02:51.3]} 4. Nxe4 {[%clk 0:03:00.7]} 4... Nd7 {[%clk 0:02:49.1]} 5. Nf3 {[%clk
0:03:00.3]} 5... Ngf6 {[%clk 0:02:46.6]} 6. Nxf6+ {[%clk 0:02:57]} 6... Nxf6
{[%clk 0:02:46.6]} 7. Bg5 {[%clk 0:02:57]} 7... c5 {[%clk 0:02:43.9]} 8. dxc5
{[%clk 0:02:55]} 8... Qxd1+ {[%clk 0:02:37.7]} 9. Rxd1 {[%clk 0:02:54.1]} 9...
Bxc5 {[%clk 0:02:38]} 10. Ne5 {[%clk 0:02:17.1]} 10... O-O {[%clk 0:02:21.4]}
11. Bd3 {[%clk 0:02:05.7]} 11... Nd5 {[%clk 0:02:13.7]} 12. Bc1 {[%clk 0:01:57]}
12... Nb4 {[%clk 0:02:06.8]} 13. O-O {[%clk 0:01:51.3]} 13... Nxd3 {[%clk
0:02:04.5]} 14. Nxd3 {[%clk 0:01:50.6]} 14... Be7 {[%clk 0:02:04]} 15. Bf4
{[%clk 0:01:48.8]} 15... Bd7 {[%clk 0:02:02.5]} 16. c4 {[%clk 0:01:48.4]} 16...
f6 {[%clk 0:02:00.1]} 17. Nc5 {[%clk 0:01:42]} 17... Bc8 {[%clk 0:01:58]} 18.
Bd6 {[%clk 0:01:40.6]} 18... Bxd6 {[%clk 0:01:56.2]} 19. Rxd6 {[%clk 0:01:41.5]}
19... e5 {[%clk 0:01:57.1]} 20. Rfd1 {[%clk 0:01:34.3]} 20... b6 {[%clk
0:01:47.7]} 21. Nd7 {[%clk 0:01:29.4]} 21... Re8 {[%clk 0:01:08.8]} 22. f3
{[%clk 0:01:17.9]} 22... Ba6 {[%clk 0:00:58.2]} 23. c5 {[%clk 0:01:11.6]} 23...
Bb5 {[%clk 0:00:50.9]} 24. cxb6 {[%clk 0:00:52.6]} 24... axb6 {[%clk 0:00:47.1]}
25. a3 {[%clk 0:00:49.7]} 25... Rab8 {[%clk 0:00:43.3]} 26. Nxb8 {[%clk
0:00:49]} 26... Rxb8 {[%clk 0:00:41]} 1-0

[Event "*** Titled Tuesday Blitz"]
[Site "Chess.com"]
[Date "2020.03.03"]
[Round "8"]
[White "ural58"]
[Black "IngOscarArdila"]
[Result "1-0"]
[WhiteElo "2406"]
[BlackElo "2170"]
[TimeControl "180+1"]
[EndTime "14:33:19 PST"]
[Termination "ural58 won by resignation"]

1. e4 {[%clk 0:03:00.9]} 1... e5 {[%clk 0:02:58.6]} 2. f4 {[%clk 0:03:00.2]}
2... d5 {[%clk 0:02:57.4]} 3. exd5 {[%clk 0:02:59.6]} 3... e4 {[%clk 0:02:56.4]}
4. d3 {[%clk 0:02:59.3]} 4... Nf6 {[%clk 0:02:56.5]} 5. Qe2 {[%clk 0:02:58.9]}
5... Qxd5 {[%clk 0:02:49.6]} 6. Nc3 {[%clk 0:02:58.8]} 6... Bb4 {[%clk
0:02:48.8]} 7. Bd2 {[%clk 0:02:58.9]} 7... Bxc3 {[%clk 0:02:46.2]} 8. Bxc3
{[%clk 0:02:59.8]} 8... Nbd7 {[%clk 0:02:41.9]} 9. dxe4 {[%clk 0:02:57.9]} 9...
Qxe4 {[%clk 0:02:26.9]} 10. Qxe4+ {[%clk 0:02:57.3]} 10... Nxe4 {[%clk
0:02:26.6]} 11. Bxg7 {[%clk 0:02:58.2]} 11... Rg8 {[%clk 0:02:25.8]} 12. Be5
{[%clk 0:02:58.9]} 12... c6 {[%clk 0:02:20.2]} 13. Nf3 {[%clk 0:02:57.5]} 13...
f6 {[%clk 0:02:19.2]} 14. Bd4 {[%clk 0:02:55.1]} 14... Ke7 {[%clk 0:02:06.1]}
15. O-O-O {[%clk 0:02:54.4]} 15... c5 {[%clk 0:01:49.5]} 16. Re1 {[%clk
0:02:47.8]} 16... f5 {[%clk 0:01:47.8]} 17. Be5 {[%clk 0:02:33.5]} 17... Nxe5
{[%clk 0:01:38.3]} 18. Nxe5 {[%clk 0:02:30.5]} 18... Be6 {[%clk 0:01:37.6]} 19.
g3 {[%clk 0:02:29.5]} 19... Rad8 {[%clk 0:01:33.7]} 20. Bg2 {[%clk 0:02:28.9]}
20... Rd4 {[%clk 0:01:25.2]} 21. Bxe4 {[%clk 0:02:27.2]} 21... fxe4 {[%clk
0:01:24.9]} 22. c3 {[%clk 0:02:26.4]} 22... Ra4 {[%clk 0:01:24.9]} 23. a3 {[%clk
0:02:25.8]} 23... Kf6 {[%clk 0:01:12.5]} 24. Re3 {[%clk 0:02:24.8]} 24... Rd8
{[%clk 0:01:00.1]} 25. Kc2 {[%clk 0:02:23.1]} 25... Kf5 {[%clk 0:00:40.2]} 26.
Rf1 {[%clk 0:02:21.2]} 26... h5 {[%clk 0:00:38.7]} 27. h3 {[%clk 0:02:19.8]}
27... Bc4 {[%clk 0:00:31.8]} 28. g4+ {[%clk 0:02:18.9]} 28... hxg4 {[%clk
0:00:31.2]} 29. hxg4+ {[%clk 0:02:19.8]} 29... Ke6 {[%clk 0:00:30.4]} 30. Nxc4
{[%clk 0:02:15.1]} 30... Rxc4 {[%clk 0:00:30.5]} 31. b3 {[%clk 0:02:15]} 31...
Kd5 {[%clk 0:00:29.6]} 32. Rd1+ {[%clk 0:02:11.4]} 32... Rd4 {[%clk 0:00:28]}
33. cxd4 {[%clk 0:02:06]} 33... cxd4 {[%clk 0:00:28]} 34. Rh3 {[%clk 0:02:06.3]}
34... Rc8+ {[%clk 0:00:27.5]} 35. Kd2 {[%clk 0:02:05.3]} 35... e3+ {[%clk
0:00:25.5]} 36. Ke2 {[%clk 0:02:03.3]} 36... Ke4 {[%clk 0:00:24.8]} 37. Rxd4+
{[%clk 0:02:03.3]} 37... Kxd4 {[%clk 0:00:23.7]} 38. Rxe3 {[%clk 0:02:03.8]}
38... Rc2+ {[%clk 0:00:23.7]} 39. Kf3 {[%clk 0:02:03.8]} 39... Ra2 {[%clk
0:00:23.9]} 40. f5 {[%clk 0:02:00.5]} 40... Rxa3 {[%clk 0:00:23.6]} 41. f6
{[%clk 0:02:00.5]} 41... Ra6 {[%clk 0:00:23.7]} 42. g5 {[%clk 0:02:00.7]} 42...
Ra5 {[%clk 0:00:23.8]} 43. Re4+ {[%clk 0:01:58.1]} 43... Kd3 {[%clk 0:00:23.6]}
44. f7 {[%clk 0:01:57.7]} 44... Rf5+ {[%clk 0:00:21.9]} 45. Rf4 {[%clk 0:01:58]}
1-0

[Event "*** Titled Tuesday Blitz"]
[Site "Chess.com"]
[Date "2020.03.03"]
[Round "8"]
[White "MiroMiljkovic"]
[Black "EugeneRougon"]
[Result "0-1"]
[WhiteElo "2571"]
[BlackElo "2696"]
[TimeControl "180+1"]
[EndTime "14:33:30 PST"]
[Termination "EugeneRougon won by checkmate"]

1. d4 {[%clk 0:03:00.9]} 1... d6 {[%clk 0:02:59.5]} 2. c4 {[%clk 0:03:00.8]}
2... g6 {[%clk 0:02:59.8]} 3. Nf3 {[%clk 0:03:00.2]} 3... Bg7 {[%clk 0:03:00.1]}
4. Nc3 {[%clk 0:02:59.4]} 4... Bg4 {[%clk 0:02:59.6]} 5. Bf4 {[%clk 0:02:53.3]}
5... Nd7 {[%clk 0:02:54.5]} 6. e3 {[%clk 0:02:49.6]} 6... e5 {[%clk 0:02:52.3]}
7. Bg3 {[%clk 0:02:49.1]} 7... exd4 {[%clk 0:02:28.8]} 8. exd4 {[%clk
0:02:48.3]} 8... Qe7+ {[%clk 0:02:26.5]} 9. Be2 {[%clk 0:02:48.1]} 9... Bxf3
{[%clk 0:02:26]} 10. gxf3 {[%clk 0:02:49]} 10... Ngf6 {[%clk 0:02:23.2]} 11. Qd3
{[%clk 0:02:41]} 11... Bh6 {[%clk 0:02:10.8]} 12. Ne4 {[%clk 0:02:32.9]} 12...
Nh5 {[%clk 0:02:06.9]} 13. c5 {[%clk 0:02:26.3]} 13... d5 {[%clk 0:01:59.2]} 14.
Nc3 {[%clk 0:02:15.1]} 14... c6 {[%clk 0:01:58.9]} 15. Bd6 {[%clk 0:02:14.4]}
15... Qh4 {[%clk 0:01:31.8]} 16. b4 {[%clk 0:01:57.9]} 16... Nf4 {[%clk
0:01:30.6]} 17. Qc2 {[%clk 0:01:34.3]} 17... Ng2+ {[%clk 0:01:15.3]} 18. Kf1
{[%clk 0:01:24.9]} 18... Qh3 {[%clk 0:01:15.3]} 19. Qb3 {[%clk 0:00:31.9]} 19...
Bd2 {[%clk 0:01:01.9]} 20. Ba6 {[%clk 0:00:11.3]} 20... Nf4+ {[%clk 0:00:57.2]}
21. Kg1 {[%clk 0:00:09.7]} 21... Qg2# {[%clk 0:00:57.5]} 0-1

[Event "*** Titled Tuesday Blitz"]
[Site "Chess.com"]
[Date "2020.03.03"]
[Round "8"]
[White "Konavets"]
[Black "Abdimalik_Abdisalimov"]
[Result "1-0"]
[WhiteElo "3029"]
[BlackElo "2854"]
[TimeControl "180+1"]
[EndTime "14:33:33 PST"]
[Termination "Konavets won by resignation"]

1. e4 {[%clk 0:03:00.9]} 1... e5 {[%clk 0:02:59.7]} 2. Nf3 {[%clk 0:03:00.8]}
2... Nc6 {[%clk 0:03:00.2]} 3. Bb5 {[%clk 0:03:00.6]} 3... Nf6 {[%clk
0:03:00.3]} 4. d3 {[%clk 0:03:00.6]} 4... Bc5 {[%clk 0:02:59.5]} 5. O-O {[%clk
0:03:00.9]} 5... Nd4 {[%clk 0:02:57.4]} 6. Nxd4 {[%clk 0:03:01.3]} 6... Bxd4
{[%clk 0:02:58.3]} 7. Nd2 {[%clk 0:03:01.6]} 7... c6 {[%clk 0:02:54.9]} 8. Ba4
{[%clk 0:03:01.1]} 8... d6 {[%clk 0:02:53]} 9. Kh1 {[%clk 0:03:01]} 9... O-O
{[%clk 0:02:47.6]} 10. c3 {[%clk 0:03:01.1]} 10... Bb6 {[%clk 0:02:47.1]} 11. h3
{[%clk 0:03:00.9]} 11... d5 {[%clk 0:02:44.9]} 12. Qe2 {[%clk 0:03:00.8]} 12...
Re8 {[%clk 0:02:42.5]} 13. Nf3 {[%clk 0:03:00.8]} 13... dxe4 {[%clk 0:02:35.1]}
14. dxe4 {[%clk 0:02:59.1]} 14... Nh5 {[%clk 0:02:34.5]} 15. Bg5 {[%clk
0:02:57.4]} 15... Qd6 {[%clk 0:02:22.6]} 16. Nh4 {[%clk 0:02:48.1]} 16... Nf4
{[%clk 0:02:14]} 17. Qf3 {[%clk 0:02:47.1]} 17... Qd3 {[%clk 0:01:49.9]} 18.
Rad1 {[%clk 0:02:44.6]} 18... Qxf3 {[%clk 0:01:49.3]} 19. Nxf3 {[%clk
0:02:45.5]} 19... f6 {[%clk 0:01:38.8]} 20. Bxf4 {[%clk 0:02:03.4]} 20... exf4
{[%clk 0:01:39.7]} 21. e5 {[%clk 0:02:04]} 21... fxe5 {[%clk 0:01:38.6]} 22. Ng5
{[%clk 0:02:04.3]} 22... h6 {[%clk 0:01:34.9]} 23. Bb3+ {[%clk 0:02:03.9]} 23...
Kf8 {[%clk 0:01:33]} 24. Ne4 {[%clk 0:01:59.8]} 24... Bc7 {[%clk 0:01:20.1]} 25.
g4 {[%clk 0:01:51.1]} 25... a5 {[%clk 0:01:09.1]} 26. a4 {[%clk 0:01:50.6]}
26... Ra6 {[%clk 0:01:01]} 27. Nc5 {[%clk 0:01:43.3]} 27... Rb6 {[%clk
0:00:59.7]} 28. Rd2 {[%clk 0:01:41.4]} 28... Rd8 {[%clk 0:00:58.9]} 29. Rfd1
{[%clk 0:01:38.2]} 29... Rxd2 {[%clk 0:00:58.9]} 30. Rxd2 {[%clk 0:01:39.1]}
30... Ke7 {[%clk 0:00:59.2]} 31. Bc4 {[%clk 0:01:39.4]} 31... Bd6 {[%clk
0:00:50.1]} 32. Ne4 {[%clk 0:01:39.4]} 32... c5 {[%clk 0:00:46]} 33. Bb5 {[%clk
0:01:34.3]} 33... Be6 {[%clk 0:00:42.8]} 34. c4 {[%clk 0:01:31.2]} 34... Bg8
{[%clk 0:00:39.5]} 35. b3 {[%clk 0:01:30.5]} 35... Bh7 {[%clk 0:00:32.3]} 36.
Nc3 {[%clk 0:01:30.3]} 36... Bg8 {[%clk 0:00:30.9]} 37. Kg2 {[%clk 0:01:30.6]}
37... Bc7 {[%clk 0:00:28.2]} 38. Rd7+ {[%clk 0:01:30.1]} 1-0

[Event "*** Titled Tuesday Blitz"]
[Site "Chess.com"]
[Date "2020.03.03"]
[Round "8"]
[White "Volodar_Murzin"]
[Black "SoltaniciR"]
[Result "1-0"]
[WhiteElo "2688"]
[BlackElo "2519"]
[TimeControl "180+1"]
[EndTime "14:33:44 PST"]
[Termination "Volodar_Murzin won by resignation"]

1. Nf3 {[%clk 0:03:00.9]} 1... c5 {[%clk 0:02:57.7]} 2. g3 {[%clk 0:03:00.9]}
2... Nc6 {[%clk 0:02:57]} 3. Bg2 {[%clk 0:03:01.2]} 3... g6 {[%clk 0:02:57.3]}
4. O-O {[%clk 0:03:01.6]} 4... Bg7 {[%clk 0:02:57.8]} 5. d3 {[%clk 0:03:02.1]}
5... d6 {[%clk 0:02:57.6]} 6. Nbd2 {[%clk 0:03:02.6]} 6... Nf6 {[%clk
0:02:55.8]} 7. e4 {[%clk 0:03:03.1]} 7... O-O {[%clk 0:02:55.3]} 8. c3 {[%clk
0:03:03.4]} 8... e5 {[%clk 0:02:54.8]} 9. a4 {[%clk 0:03:01.7]} 9... h6 {[%clk
0:02:52.3]} 10. Nc4 {[%clk 0:02:59.5]} 10... Re8 {[%clk 0:02:50.7]} 11. h3
{[%clk 0:02:54.2]} 11... d5 {[%clk 0:02:45.9]} 12. exd5 {[%clk 0:02:51.5]} 12...
Nxd5 {[%clk 0:02:46.8]} 13. Nfd2 {[%clk 0:02:50.8]} 13... f5 {[%clk 0:02:11.5]}
14. Nb3 {[%clk 0:02:47.9]} 14... b6 {[%clk 0:02:07.5]} 15. a5 {[%clk 0:02:45.1]}
15... Rb8 {[%clk 0:02:05.8]} 16. axb6 {[%clk 0:02:44.3]} 16... axb6 {[%clk
0:02:05.8]} 17. h4 {[%clk 0:02:20.7]} 17... Be6 {[%clk 0:02:01.2]} 18. Re1
{[%clk 0:02:04.6]} 18... Bf7 {[%clk 0:02:00.8]} 19. Ne3 {[%clk 0:02:02]} 19...
Qd7 {[%clk 0:01:57.8]} 20. Qf3 {[%clk 0:01:49.4]} 20... Rbd8 {[%clk 0:01:55.6]}
21. Nxd5 {[%clk 0:01:34.3]} 21... Bxd5 {[%clk 0:01:54.7]} 22. Qxd5+ {[%clk
0:01:34.6]} 22... Qxd5 {[%clk 0:01:55.1]} 23. Bxd5+ {[%clk 0:01:35.5]} 23...
Rxd5 {[%clk 0:01:55.6]} 24. Ra6 {[%clk 0:01:36.2]} 24... Rb8 {[%clk 0:01:47.3]}
25. Be3 {[%clk 0:01:35.2]} 25... Kh7 {[%clk 0:01:35.2]} 26. Nxc5 {[%clk
0:01:25.4]} 26... bxc5 {[%clk 0:01:31.2]} 27. Rxc6 {[%clk 0:01:25.5]} 27... Rxb2
{[%clk 0:01:30.1]} 28. Rc7 {[%clk 0:01:23.2]} 28... Kg8 {[%clk 0:01:11.8]} 29.
Bxc5 {[%clk 0:01:10]} 29... Rxd3 {[%clk 0:01:07.2]} 30. Ra1 {[%clk 0:00:57.3]}
30... Rb8 {[%clk 0:00:58.1]} 31. Raa7 {[%clk 0:00:50.5]} 31... Bf6 {[%clk
0:00:56.7]} 32. Ra6 {[%clk 0:00:48.9]} 1-0

[Event "*** Titled Tuesday Blitz"]
[Site "Chess.com"]
[Date "2020.03.03"]
[Round "8"]
[White "Incognito_Knight"]
[Black "atbenina64"]
[Result "1-0"]
[WhiteElo "2680"]
[BlackElo "2523"]
[TimeControl "180+1"]
[EndTime "14:33:49 PST"]
[Termination "Incognito_Knight won by resignation"]

1. e4 {[%clk 0:03:00.9]} 1... c6 {[%clk 0:02:58.5]} 2. d4 {[%clk 0:02:57.3]}
2... d5 {[%clk 0:02:58.6]} 3. e5 {[%clk 0:02:57.8]} 3... Bf5 {[%clk 0:02:57.9]}
4. Nd2 {[%clk 0:02:57.3]} 4... e6 {[%clk 0:02:55.7]} 5. Nb3 {[%clk 0:02:56.1]}
5... Ne7 {[%clk 0:02:53.2]} 6. Nf3 {[%clk 0:02:53.4]} 6... h6 {[%clk 0:02:49.3]}
7. Be2 {[%clk 0:02:53.1]} 7... Nd7 {[%clk 0:02:49.5]} 8. O-O {[%clk 0:02:52.4]}
8... Qc7 {[%clk 0:02:49.6]} 9. Be3 {[%clk 0:02:49.9]} 9... g5 {[%clk 0:02:47.5]}
10. Ne1 {[%clk 0:02:50.1]} 10... b6 {[%clk 0:02:25.2]} 11. Rc1 {[%clk 0:02:43]}
11... Bg7 {[%clk 0:02:18.2]} 12. c4 {[%clk 0:02:36.5]} 12... dxc4 {[%clk
0:02:12.7]} 13. Bxc4 {[%clk 0:02:35.3]} 13... Qb7 {[%clk 0:02:02.3]} 14. Bd3
{[%clk 0:02:24.9]} 14... Bxd3 {[%clk 0:01:59.2]} 15. Nxd3 {[%clk 0:02:25.2]}
15... Nd5 {[%clk 0:01:58.5]} 16. Nd2 {[%clk 0:02:22.7]} 16... b5 {[%clk
0:01:44.8]} 17. Ne4 {[%clk 0:02:20.1]} 17... Bf8 {[%clk 0:01:43.6]} 18. Qh5
{[%clk 0:02:09.4]} 18... Rg8 {[%clk 0:01:37.3]} 19. Bd2 {[%clk 0:02:06.7]} 19...
Rg6 {[%clk 0:01:34.2]} 20. f4 {[%clk 0:01:53.9]} 20... gxf4 {[%clk 0:01:32.3]}
21. Nxf4 {[%clk 0:01:50.1]} 21... Nxf4 {[%clk 0:01:30.5]} 22. Rxf4 {[%clk
0:01:48.8]} 22... Nb6 {[%clk 0:01:29.2]} 23. Rcf1 {[%clk 0:01:44.7]} 23... Nd5
{[%clk 0:01:01]} 24. Qxg6 {[%clk 0:01:24.3]} 24... Nxf4 {[%clk 0:00:56.8]} 25.
Nf6+ {[%clk 0:01:22.2]} 25... Ke7 {[%clk 0:00:51.3]} 26. Bb4+ {[%clk 0:00:49.4]}
26... c5 {[%clk 0:00:45.7]} 27. Bxc5+ {[%clk 0:00:48.8]} 27... Kd8 {[%clk
0:00:45.8]} 28. Qg8 {[%clk 0:00:46.7]} 28... Kc7 {[%clk 0:00:41.1]} 29. Qxf7+
{[%clk 0:00:43.3]} 1-0

[Event "*** Titled Tuesday Blitz"]
[Site "Chess.com"]
[Date "2020.03.03"]
[Round "8"]
[White "Keaton87"]
[Black "Bongcloudtransvestit"]
[Result "0-1"]
[WhiteElo "2605"]
[BlackElo "2359"]
[TimeControl "180+1"]
[EndTime "14:33:58 PST"]
[Termination "Bongcloudtransvestit won by checkmate"]

1. d4 {[%clk 0:03:00.9]} 1... Nf6 {[%clk 0:02:59.3]} 2. Bg5 {[%clk 0:03:00.9]}
2... Ne4 {[%clk 0:02:54.6]} 3. Bf4 {[%clk 0:03:00.3]} 3... d6 {[%clk 0:02:53.3]}
4. f3 {[%clk 0:03:00.2]} 4... Nf6 {[%clk 0:02:53.6]} 5. e4 {[%clk 0:03:00.4]}
5... Nbd7 {[%clk 0:02:54.1]} 6. Nc3 {[%clk 0:03:00.2]} 6... e5 {[%clk
0:02:54.3]} 7. Be3 {[%clk 0:02:58.5]} 7... c6 {[%clk 0:02:54.7]} 8. Nge2 {[%clk
0:02:56.8]} 8... Be7 {[%clk 0:02:55]} 9. Qd2 {[%clk 0:02:56.3]} 9... b5 {[%clk
0:02:54.5]} 10. g4 {[%clk 0:02:54.5]} 10... O-O {[%clk 0:02:52.9]} 11. h4 {[%clk
0:02:54.5]} 11... b4 {[%clk 0:02:49]} 12. Nd1 {[%clk 0:02:54]} 12... d5 {[%clk
0:02:46]} 13. g5 {[%clk 0:02:51.8]} 13... Nh5 {[%clk 0:02:21.4]} 14. Nf2 {[%clk
0:02:50.9]} 14... dxe4 {[%clk 0:02:10.3]} 15. Nxe4 {[%clk 0:02:49.2]} 15... exd4
{[%clk 0:02:08.9]} 16. Nxd4 {[%clk 0:02:47.8]} 16... Bb7 {[%clk 0:01:57.6]} 17.
O-O-O {[%clk 0:02:45.7]} 17... Ne5 {[%clk 0:01:50.3]} 18. Be2 {[%clk 0:02:40.6]}
18... Qc8 {[%clk 0:01:17.1]} 19. f4 {[%clk 0:02:39.4]} 19... c5 {[%clk
0:01:17.2]} 20. Nf6+ {[%clk 0:01:43.8]} 20... gxf6 {[%clk 0:00:56.5]} 21. Bxh5
{[%clk 0:01:31.2]} 21... Nc4 {[%clk 0:00:46.3]} 22. Qd3 {[%clk 0:01:14.1]} 22...
Nxe3 {[%clk 0:00:36.5]} 23. Qxe3 {[%clk 0:01:09.2]} 23... cxd4 {[%clk
0:00:35.7]} 24. Qxe7 {[%clk 0:01:08.7]} 24... Bxh1 {[%clk 0:00:24.5]} 25. Rxh1
{[%clk 0:01:08.1]} 25... Qe6 {[%clk 0:00:20.1]} 26. Qxb4 {[%clk 0:00:55.4]}
26... Qxa2 {[%clk 0:00:13.3]} 27. Rd1 {[%clk 0:00:42.1]} 27... Rab8 {[%clk
0:00:12.9]} 28. Qxd4 {[%clk 0:00:41.3]} 28... Rbd8 {[%clk 0:00:09.9]} 29. Qxf6
{[%clk 0:00:39.8]} 29... Qa1# {[%clk 0:00:09.7]} 0-1

[Event "*** Titled Tuesday Blitz"]
[Site "Chess.com"]
[Date "2020.03.03"]
[Round "8"]
[White "Region_07"]
[Black "DinaBelenkaya"]
[Result "1-0"]
[WhiteElo "2404"]
[BlackElo "2278"]
[TimeControl "180+1"]
[EndTime "14:34:04 PST"]
[Termination "Region_07 won on time"]

1. d4 {[%clk 0:03:00.9]} 1... d5 {[%clk 0:02:54.8]} 2. Bg5 {[%clk 0:02:59.4]}
2... Nf6 {[%clk 0:02:39.5]} 3. Bxf6 {[%clk 0:02:59.2]} 3... exf6 {[%clk
0:02:28.3]} 4. e3 {[%clk 0:02:59]} 4... c6 {[%clk 0:02:25.3]} 5. c4 {[%clk
0:02:59.3]} 5... dxc4 {[%clk 0:02:24]} 6. Bxc4 {[%clk 0:03:00.2]} 6... Bd6
{[%clk 0:02:21]} 7. Nc3 {[%clk 0:03:00.2]} 7... O-O {[%clk 0:02:20.6]} 8. Nf3
{[%clk 0:03:00.4]} 8... f5 {[%clk 0:02:19.8]} 9. O-O {[%clk 0:02:59.9]} 9... Nd7
{[%clk 0:02:19.7]} 10. Qc2 {[%clk 0:02:55.6]} 10... Nf6 {[%clk 0:02:18.7]} 11.
Bd3 {[%clk 0:02:55.8]} 11... g6 {[%clk 0:02:13.5]} 12. Ne5 {[%clk 0:02:54.4]}
12... Re8 {[%clk 0:02:10.3]} 13. f4 {[%clk 0:02:52.9]} 13... Be6 {[%clk
0:02:07.9]} 14. Rae1 {[%clk 0:02:47]} 14... Qa5 {[%clk 0:01:44.4]} 15. a3 {[%clk
0:02:44.6]} 15... Rad8 {[%clk 0:01:42]} 16. Nc4 {[%clk 0:02:37.3]} 16... Qc7
{[%clk 0:01:14]} 17. Ne5 {[%clk 0:02:36.6]} 17... Nd5 {[%clk 0:01:07.3]} 18. e4
{[%clk 0:02:32.4]} 18... fxe4 {[%clk 0:01:02.6]} 19. Nxe4 {[%clk 0:02:33.3]}
19... Qb6 {[%clk 0:00:33.5]} 20. Nc5 {[%clk 0:02:24.8]} 20... Bc8 {[%clk
0:00:29.6]} 21. b4 {[%clk 0:02:17.2]} 21... a5 {[%clk 0:00:23.9]} 22. f5 {[%clk
0:02:14.7]} 22... axb4 {[%clk 0:00:21.6]} 23. fxg6 {[%clk 0:02:13.4]} 23... fxg6
{[%clk 0:00:19]} 24. Bxg6 {[%clk 0:02:12]} 24... Bxe5 {[%clk 0:00:15.1]} 25.
dxe5 {[%clk 0:02:06.1]} 25... Re7 {[%clk 0:00:14.6]} 26. Kh1 {[%clk 0:01:56.3]}
26... b3 {[%clk 0:00:13.8]} 27. Qc4 {[%clk 0:01:10.3]} 27... hxg6 {[%clk
0:00:12.6]} 28. e6 {[%clk 0:01:11.2]} 28... b2 {[%clk 0:00:10.7]} 29. Na4 {[%clk
0:00:56.3]} 29... Qb5 {[%clk 0:00:06.6]} 30. Qc2 {[%clk 0:00:56.3]} 30... Rg7
{[%clk 0:00:04.1]} 31. Nxb2 {[%clk 0:00:53.7]} 1-0

[Event "*** Titled Tuesday Blitz"]
[Site "Chess.com"]
[Date "2020.03.03"]
[Round "8"]
[White "NeverEverForever1990"]
[Black "LarissaSteenbekkers"]
[Result "1-0"]
[WhiteElo "2361"]
[BlackElo "1874"]
[TimeControl "180+1"]
[EndTime "14:34:12 PST"]
[Termination "NeverEverForever1990 won on time"]

1. e4 {[%clk 0:03:00.9]} 1... e6 {[%clk 0:02:57.8]} 2. d4 {[%clk 0:02:58]} 2...
d5 {[%clk 0:02:58]} 3. Nc3 {[%clk 0:02:57.8]} 3... Bb4 {[%clk 0:02:55.7]} 4. e5
{[%clk 0:02:57.8]} 4... Ne7 {[%clk 0:02:54.9]} 5. a3 {[%clk 0:02:55.8]} 5...
Bxc3+ {[%clk 0:02:54.4]} 6. bxc3 {[%clk 0:02:56.7]} 6... c5 {[%clk 0:02:53.8]}
7. Qg4 {[%clk 0:02:54.6]} 7... Qc7 {[%clk 0:02:51.2]} 8. Bd3 {[%clk 0:02:51.7]}
8... c4 {[%clk 0:01:54.3]} 9. Be2 {[%clk 0:02:47.7]} 9... Nf5 {[%clk 0:01:31.5]}
10. Qf4 {[%clk 0:02:32.8]} 10... h5 {[%clk 0:01:23.4]} 11. a4 {[%clk 0:02:30.9]}
11... Nc6 {[%clk 0:01:20.4]} 12. Nf3 {[%clk 0:02:22.1]} 12... Bd7 {[%clk
0:01:12.6]} 13. Ba3 {[%clk 0:02:18.5]} 13... f6 {[%clk 0:01:07.1]} 14. O-O
{[%clk 0:02:12.5]} 14... g5 {[%clk 0:01:05]} 15. Nxg5 {[%clk 0:02:03.5]} 15...
fxg5 {[%clk 0:01:01.7]} 16. Qxg5 {[%clk 0:02:02.6]} 16... Nce7 {[%clk
0:00:59.2]} 17. Bxh5+ {[%clk 0:01:59.8]} 17... Kd8 {[%clk 0:00:54.8]} 18. Bg4
{[%clk 0:01:51.1]} 18... Bc6 {[%clk 0:00:43.6]} 19. Bxf5 {[%clk 0:01:45.5]}
19... exf5 {[%clk 0:00:41.7]} 20. Bd6 {[%clk 0:01:38.1]} 20... Qd7 {[%clk
0:00:38.9]} 21. Rfe1 {[%clk 0:01:36.4]} 21... Ke8 {[%clk 0:00:33.9]} 22. Re3
{[%clk 0:01:30]} 22... Rg8 {[%clk 0:00:31.5]} 23. Qf6 {[%clk 0:01:24]} 23... Rf8
{[%clk 0:00:20.2]} 24. Qh6 {[%clk 0:01:15.3]} 24... Rg8 {[%clk 0:00:17.7]} 25.
Qh5+ {[%clk 0:01:13]} 25... Kd8 {[%clk 0:00:14.5]} 26. Bxe7+ {[%clk 0:01:08.9]}
26... Qxe7 {[%clk 0:00:12.9]} 27. Qxf5 {[%clk 0:01:04.1]} 27... Kc7 {[%clk
0:00:11.5]} 28. e6 {[%clk 0:00:50.7]} 28... Raf8 {[%clk 0:00:08.5]} 29. Qe5+
{[%clk 0:00:51.6]} 29... Kb6 {[%clk 0:00:07.5]} 30. a5+ {[%clk 0:00:50.1]} 30...
Ka6 {[%clk 0:00:06.5]} 31. f4 {[%clk 0:00:50.3]} 31... Rg4 {[%clk 0:00:02.6]}
32. f5 {[%clk 0:00:49]} 1-0

[Event "*** Titled Tuesday Blitz"]
[Site "Chess.com"]
[Date "2020.03.03"]
[Round "8"]
[White "Playgood28"]
[Black "MikeSailer"]
[Result "1-0"]
[WhiteElo "2244"]
[BlackElo "2112"]
[TimeControl "180+1"]
[EndTime "14:34:12 PST"]
[Termination "Playgood28 won on time"]

1. d4 {[%clk 0:03:00.9]} 1... d5 {[%clk 0:02:59.3]} 2. c4 {[%clk 0:03:00.2]}
2... Bf5 {[%clk 0:02:58.8]} 3. Nc3 {[%clk 0:02:58.8]} 3... e6 {[%clk 0:02:58]}
4. cxd5 {[%clk 0:02:54.1]} 4... exd5 {[%clk 0:02:56.9]} 5. Qb3 {[%clk
0:02:48.2]} 5... Nc6 {[%clk 0:02:55.6]} 6. Nf3 {[%clk 0:02:45.7]} 6... Nb4
{[%clk 0:02:48.6]} 7. e4 {[%clk 0:02:45.2]} 7... dxe4 {[%clk 0:02:40]} 8. Ne5
{[%clk 0:02:41]} 8... Be6 {[%clk 0:02:39.9]} 9. Bc4 {[%clk 0:02:39.1]} 9... Qxd4
{[%clk 0:01:19.5]} 10. Bxe6 {[%clk 0:02:31.9]} 10... Qxe5 {[%clk 0:00:41.8]} 11.
Bxf7+ {[%clk 0:02:28.5]} 11... Kd8 {[%clk 0:00:40.5]} 12. Bxg8 {[%clk
0:02:02.2]} 12... Nd3+ {[%clk 0:00:38.9]} 13. Kf1 {[%clk 0:02:01.9]} 13... Bc5
{[%clk 0:00:29.9]} 14. Qd5+ {[%clk 0:01:44.9]} 14... Qxd5 {[%clk 0:00:29]} 15.
Bxd5 {[%clk 0:01:44.6]} 15... Nxf2 {[%clk 0:00:26.7]} 16. Nxe4 {[%clk
0:01:40.3]} 16... Nxh1 {[%clk 0:00:12.8]} 17. Nxc5 {[%clk 0:01:37.5]} 17... Rf8+
{[%clk 0:00:07.9]} 18. Kg1 {[%clk 0:01:36.6]} 18... Rf5 {[%clk 0:00:07.7]} 19.
Ne6+ {[%clk 0:01:04.5]} 19... Ke7 {[%clk 0:00:08]} 20. Bg5+ {[%clk 0:00:53.4]}
20... Kd6 {[%clk 0:00:06.4]} 21. Rd1 {[%clk 0:00:47.5]} 21... Rxd5 {[%clk
0:00:04.7]} 22. Rxd5+ {[%clk 0:00:46.1]} 22... Kxe6 {[%clk 0:00:05.1]} 23. Rd1
{[%clk 0:00:41.5]} 23... h6 {[%clk 0:00:02.8]} 24. Be3 {[%clk 0:00:39.3]} 1-0